bitfinex/quotes_BTCUSD_20240818
["timestamp","ask_amount","ask_price","bid_price","bid_amount"]
[1723981036630,1.118013,59901.0,59900.0,0.000531]
[1723981036881,0.918013,59901.0,59900.0,0.000531]
[1723981037077,0.918013,59901.0,59900.0,0.076631]
[1723981037078,0.684295,59901.0,59900.0,0.076631]
[1723981037941,0.698295,59901.0,59900.0,0.076631]
[1723981038332,0.478577,59901.0,59900.0,0.141631]
[1723981038572,0.230859,59901.0,59900.0,0.1557941]
[1723981039068,0.472577,59901.0,59900.0,0.1557941]
[1723981039282,0.008,59901.0,59900.0,0.1787941]
[1723981039723,0.017,59901.0,59900.0,0.1787941]
[1723981039928,0.017,59901.0,59900.0,0.076631]
[1723981039929,0.250718,59901.0,59900.0,0.076631]
[1723981040142,0.593295,59901.0,59900.0,0.000531]
[1723981040353,0.830013,59901.0,59900.0,0.000531]
[1723981040581,0.920013,59901.0,59900.0,0.000531]
[1723981040993,0.920013,59901.0,59900.0,0.001531]
[1723981041196,0.920013,59901.0,59900.0,0.000531]
[1723981041616,0.918013,59901.0,59900.0,0.000531]
[1723981042045,0.920013,59901.0,59900.0,0.000531]
[1723981042308,0.686295,59901.0,59900.0,0.076631]
[1723981042516,0.686295,59901.0,59900.0,0.141631]
[1723981042725,0.455577,59901.0,59900.0,0.1557941]
[1723981043173,0.455577,59901.0,59900.0,0.141631]
[1723981043379,0.450577,59901.0,59900.0,0.141631]
[1723981043583,0.455577,59901.0,59900.0,0.141631]
[1723981043791,0.457577,59901.0,59900.0,0.141631]
[1723981044013,0.223859,59901.0,59900.0,0.141631]
[1723981044218,0.002,59901.0,59900.0,0.1787941]
[1723981044575,0.003,59901.0,59900.0,0.1787941]
[1723981044778,0.003,59901.0,59900.0,0.76643774]
[1723981045026,0.003,59901.0,59900.0,1.00315974]
[1723981045228,0.002,59901.0,59900.0,1.00315974]
[1723981045458,0.03,59928.0,59912.0,0.0761]
[1723981045769,0.233652,59919.0,59913.0,0.139834]
[1723981045882,0.03,59928.0,59913.0,0.023]
[1723981046117,0.03,59928.0,59915.0,0.0761]
[1723981046118,0.35049,59916.0,59915.0,0.0761]
[1723981046310,0.233649,59919.0,59915.0,0.0991]
[1723981046581,0.116824,59919.0,59918.0,0.065]
[1723981047554,0.216824,59919.0,59918.0,0.065]
[1723981047755,0.450472,59919.0,59918.0,0.065]
[1723981047963,0.216824,59919.0,59918.0,0.065]
[1723981048158,0.1,59919.0,59918.0,0.065]
[1723981048613,0.1,59921.0,59918.0,0.065]
[1723981048823,0.1,59923.0,59920.0,0.116821]
[1723981049022,0.125808,59928.0,59918.0,0.065]
[1723981049023,0.116809,59927.0,59918.0,0.067]
[1723981049238,0.11681,59926.0,59920.0,0.116821]
[1723981049634,0.11681,59926.0,59921.0,0.116819]
[1723981049828,0.1,59933.0,59921.0,0.116819]
[1723981049829,0.233593,59934.0,59922.0,0.023]
[1723981050055,0.233587,59935.0,59926.0,0.116809]
[1723981050256,0.233599,59932.0,59926.0,0.116809]
[1723981050609,0.116801,59931.0,59926.0,0.116809]
[1723981050924,0.116802,59930.0,59924.0,0.116813]
[1723981051147,0.116802,59930.0,59925.0,0.023]
[1723981051351,0.1,59929.0,59925.0,0.023]
[1723981051555,0.116808,59928.0,59925.0,0.023]
[1723981051758,0.1,59929.0,59925.0,0.116811]
[1723981051954,0.216805,59929.0,59924.0,0.139814]
[1723981052920,0.216805,59929.0,59925.0,0.116811]
[1723981053117,0.102,59929.0,59926.0,0.11681]
[1723981053468,0.118804,59929.0,59924.0,0.139813]
[1723981053673,0.120804,59929.0,59924.0,0.139813]
[1723981054066,0.116809,59927.0,59924.0,0.023]
[1723981054288,0.116809,59927.0,59923.0,0.023]
[1723981054421,0.116809,59927.0,59922.0,0.023]
[1723981054627,0.116809,59927.0,59923.0,0.116816]
[1723981054845,0.116809,59927.0,59924.0,0.023]
[1723981055313,0.11681,59926.0,59924.0,0.023]
[1723981055425,0.11681,59926.0,59922.0,0.023]
[1723981055629,0.11681,59926.0,59922.0,0.139818]
[1723981056084,0.11681,59926.0,59924.0,0.001]
[1723981056286,0.11681,59926.0,59922.0,0.139818]
[1723981056708,0.116808,59928.0,59922.0,0.141818]
[1723981056940,0.116809,59927.0,59923.0,0.0215918]
[1723981057074,0.116809,59927.0,59924.0,0.01759556]
[1723981057287,0.23361,59929.0,59924.0,0.01959556]
[1723981057497,0.116811,59926.0,59924.0,0.01959556]
[1723981057724,0.116811,59926.0,59924.0,0.002]
[1723981058097,0.117637,59926.0,59924.0,0.002]
[1723981058540,0.117637,59926.0,59922.0,0.023]
[1723981058541,0.000826,59926.0,59922.0,0.023]
[1723981058747,0.117637,59926.0,59922.0,0.023]
[1723981059501,0.117637,59926.0,59924.0,0.002]
[1723981059707,0.117637,59926.0,59922.0,0.023]
[1723981059928,0.117637,59926.0,59922.0,0.025]
[1723981060476,0.117637,59926.0,59922.0,0.023]
[1723981060624,0.116813,59925.0,59922.0,0.023]
[1723981061608,0.116813,59925.0,59924.0,0.002]
[1723981061810,0.116813,59925.0,59922.0,0.023]
[1723981062248,0.116813,59925.0,59922.0,0.026]
[1723981062432,0.116813,59925.0,59922.0,0.023]
[1723981062808,0.116813,59925.0,59924.0,0.003]
[1723981063013,0.116813,59925.0,59923.0,0.021592]
[1723981063673,0.116813,59925.0,59922.0,0.029]
[1723981064215,0.117637,59926.0,59922.0,0.029]
[1723981064719,0.117637,59926.0,59922.0,0.026]
[1723981064920,0.117637,59926.0,59924.0,0.003]
[1723981065362,0.117637,59926.0,59922.0,0.026]
[1723981065513,0.000826,59926.0,59923.0,0.061]
[1723981065714,0.000826,59926.0,59925.0,0.003]
[1723981065917,0.000826,59926.0,59925.0,0.222712]
[1723981066325,0.000826,59926.0,59925.0,0.219712]
[1723981066585,0.000826,59926.0,59925.0,0.1029]
[1723981067859,0.000826,59926.0,59925.0,0.1049]
[1723981069803,0.000826,59926.0,59925.0,0.1059]
[1723981070031,0.000826,59926.0,59925.0,0.222712]
[1723981070228,0.000826,59926.0,59925.0,0.224712]
[1723981070795,0.000826,59926.0,59925.0,0.221712]
[1723981071030,0.000826,59926.0,59925.0,0.1049]
[1723981071484,0.000826,59926.0,59925.0,0.222712]
[1723981071885,0.000826,59926.0,59925.0,0.1049]
[1723981073844,0.000826,59926.0,59925.0,0.221712]
[1723981074044,0.000826,59926.0,59925.0,0.1049]
[1723981078298,0.000826,59926.0,59925.0,0.12559392]
[1723981078870,0.117636,59926.0,59925.0,0.04569392]
[1723981080228,0.351257,59926.0,59925.0,0.04569392]
[1723981081150,0.000826,59926.0,59925.0,0.04569392]
[1723981083193,0.117636,59926.0,59925.0,0.04569392]
[1723981083325,0.351257,59926.0,59925.0,0.002]
[1723981083523,0.761178,59926.0,59925.0,0.002]
[1723981083772,0.994799,59926.0,59925.0,0.002]
[1723981084088,1.11423209,59926.0,59925.0,0.002]
[1723981084296,1.00531969,59926.0,59925.0,0.002]
[1723981084505,1.23894069,59926.0,59925.0,0.002]
[1723981084710,1.00531969,59926.0,59925.0,0.002]
[1723981084916,1.07181969,59926.0,59925.0,0.002]
[1723981085136,0.894082,59918.0,59917.0,0.1]
[1723981085540,0.894082,59918.0,59917.0,0.11004018]
[1723981085740,0.817782,59918.0,59917.0,0.11004018]
[1723981085950,0.817782,59918.0,59917.0,0.1]
[1723981086537,0.58613,59918.0,59917.0,0.1]
[1723981087530,0.58713,59918.0,59917.0,0.1]
[1723981099750,0.353478,59918.0,59917.0,0.1]
[1723981100160,0.58713,59918.0,59917.0,0.1]
[1723981100564,0.353478,59918.0,59917.0,0.1]
[1723981100770,0.353478,59918.0,59917.0,0.11]
[1723981100969,0.58713,59918.0,59917.0,0.11]
[1723981101177,0.58713,59918.0,59917.0,0.1]
[1723981101638,0.58713,59918.0,59917.0,0.2409]
[1723981101639,0.119826,59918.0,59917.0,0.2409]
[1723981102216,0.003,59918.0,59917.0,0.2639]
[1723981102625,0.001,59918.0,59917.0,0.2639]
[1723981103039,0.1,59920.0,59917.0,0.28659506]
[1723981103243,0.116825,59919.0,59918.0,0.023]
[1723981103460,0.1,59920.0,59918.0,0.023]
[1723981103653,0.216823,59920.0,59918.0,0.023]
[1723981104454,0.116824,59919.0,59918.0,0.023]
[1723981104655,0.11682,59922.0,59918.0,0.139826]
[1723981104857,0.116822,59920.0,59918.0,0.023]
[1723981105056,0.116822,59920.0,59919.0,0.02069457]
[1723981105420,0.116821,59921.0,59919.0,0.04369457]
[1723981105596,0.001,59920.0,59919.0,0.023]
[1723981105799,0.001,59920.0,59919.0,0.0436944]
[1723981105800,0.117822,59920.0,59919.0,0.0436944]
[1723981106408,0.233637,59922.0,59919.0,0.0436944]
[1723981106543,0.233637,59922.0,59920.0,0.023]
[1723981106994,0.11682,59921.0,59919.0,0.023]
[1723981107227,0.11682,59921.0,59919.0,0.003]
[1723981107408,0.002,59920.0,59919.0,0.003]
[1723981107744,0.002,59920.0,59919.0,0.04669444]
[1723981107948,0.001,59920.0,59919.0,0.04669444]
[1723981108387,0.117822,59920.0,59919.0,0.04669444]
[1723981108590,0.116822,59920.0,59919.0,0.04369444]
[1723981109487,0.001,59920.0,59919.0,0.04669444]
[1723981110201,0.002,59920.0,59919.0,0.04669444]
[1723981110437,0.002825,59920.0,59919.0,0.04669444]
[1723981111699,0.002825,59920.0,59919.0,0.026]
[1723981111910,0.002825,59920.0,59919.0,0.04669443]
[1723981112529,0.002825,59920.0,59919.0,0.04669447]
[1723981113958,0.119647,59920.0,59919.0,0.04669447]
[1723981117670,0.119647,59920.0,59919.0,0.026]
[1723981117875,0.353291,59920.0,59919.0,0.026]
[1723981119053,0.586935,59920.0,59919.0,0.026]
[1723981119298,0.586935,59920.0,59919.0,0.003]
[1723981120036,0.352291,59920.0,59919.0,0.003]
[1723981120241,0.116826,59918.0,59917.0,0.1]
[1723981120447,0.116826,59918.0,59917.0,0.123]
[1723981120876,0.116826,59918.0,59917.0,0.1]
[1723981120877,0.350478,59918.0,59917.0,0.1]
[1723981121080,0.58413,59918.0,59917.0,0.1]
[1723981123042,0.58513,59918.0,59917.0,0.1]
[1723981123440,0.116826,59918.0,59917.0,0.103]
[1723981123619,0.23447,59920.0,59917.0,0.14669556]
[1723981123825,0.116824,59919.0,59918.0,0.04369556]
[1723981124052,0.116824,59919.0,59918.0,0.04369501]
[1723981124484,0.000825,59920.0,59918.0,0.023]
[1723981124689,0.000825,59920.0,59919.0,0.0812]
[1723981124889,0.000825,59920.0,59919.0,0.12489479]
[1723981126391,0.000825,59920.0,59919.0,0.12589479]
[1723981126749,0.117647,59920.0,59919.0,0.12589479]
[1723981127383,0.000825,59920.0,59919.0,0.12589479]
[1723981129352,0.000825,59920.0,59919.0,0.24271879]
[1723981129759,0.000825,59920.0,59919.0,0.12589479]
[1723981132313,0.000825,59920.0,59919.0,0.1052]
[1723981132516,0.000825,59920.0,59919.0,0.12589098]
[1723981133784,0.000825,59920.0,59919.0,0.24271498]
[1723981133989,0.000825,59920.0,59919.0,0.12589098]
[1723981135068,0.000825,59920.0,59919.0,0.12589095]
[1723981135573,0.000825,59920.0,59919.0,0.77121095]
[1723981135775,0.000825,59920.0,59919.0,0.80595688]
[1723981135909,0.000825,59920.0,59919.0,0.81095688]
[1723981136734,0.001825,59920.0,59919.0,0.80995688]
[1723981136953,0.002825,59920.0,59919.0,0.81295688]
[1723981137155,0.001825,59920.0,59919.0,0.81295688]
[1723981137357,0.001825,59920.0,59919.0,0.81295362]
[1723981137556,0.002825,59920.0,59919.0,0.81295362]
[1723981139884,0.002825,59920.0,59919.0,0.81095362]
[1723981140303,0.145125,59920.0,59919.0,0.05843362]
[1723981140511,0.495591,59920.0,59919.0,0.0236893]
[1723981140712,0.119647,59920.0,59919.0,0.0236893]
[1723981140914,0.119647,59920.0,59919.0,0.04012823]
[1723981141123,0.002825,59920.0,59919.0,0.04012823]
[1723981141530,0.119647,59920.0,59919.0,0.04012823]
[1723981141882,0.119647,59920.0,59919.0,0.06312823]
[1723981142107,0.353291,59920.0,59919.0,0.0236893]
[1723981142252,0.351291,59920.0,59919.0,0.0206893]
[1723981142647,0.353291,59920.0,59919.0,0.0256893]
[1723981143078,0.001825,59920.0,59919.0,0.0246893]
[1723981143305,0.001825,59920.0,59919.0,0.1133893]
[1723981143509,0.002825,59920.0,59919.0,0.2312133]
[1723981143917,0.002825,59920.0,59919.0,0.4648613]
[1723981144126,0.002825,59920.0,59919.0,0.6985093]
[1723981144339,0.002825,59920.0,59919.0,0.4648613]
[1723981145617,0.002825,59920.0,59919.0,0.4658613]
[1723981146055,0.002825,59920.0,59919.0,0.4648613]
[1723981146873,0.002825,59920.0,59919.0,0.4658613]
[1723981147505,0.002825,59920.0,59919.0,0.4648613]
[1723981147707,0.002825,59920.0,59919.0,0.4658613]
[1723981148541,0.002825,59920.0,59919.0,0.4648613]
[1723981148867,0.002825,59920.0,59919.0,0.444172]
[1723981149068,0.002825,59920.0,59919.0,0.46486223]
[1723981149287,0.002825,59920.0,59919.0,0.444172]
[1723981149491,0.002825,59920.0,59919.0,0.4648622]
[1723981152506,0.002825,59920.0,59919.0,0.49960815]
[1723981154320,0.002825,59920.0,59919.0,0.73325615]
[1723981154489,0.002825,59920.0,59919.0,0.49960815]
[1723981156115,0.002825,59920.0,59919.0,0.73425615]
[1723981157808,0.002825,59920.0,59919.0,0.43390815]
[1723981158271,0.002825,59920.0,59919.0,0.06043615]
[1723981158516,0.119647,59920.0,59919.0,0.0256902]
[1723981159130,0.735435,59920.0,59919.0,0.0256902]
[1723981159342,1.069079,59920.0,59919.0,0.005]
[1723981159545,1.07873559,59920.0,59919.0,0.004]
[1723981159768,1.07973559,59920.0,59919.0,0.005]
[1723981159976,1.07973559,59920.0,59919.0,0.001]
[1723981159977,1.07873559,59920.0,59919.0,0.001]
[1723981160389,0.73269,59912.0,59911.0,0.00040186]
[1723981160589,0.11248159,59920.0,59913.0,0.116835]
[1723981160590,0.1485,59916.0,59913.0,0.116835]
[1723981160804,0.382162,59916.0,59914.0,0.01172369]
[1723981161008,0.0831,59916.0,59911.0,0.00040186]
[1723981161216,0.0831,59916.0,59912.0,0.02069246]
[1723981161417,0.233664,59915.0,59913.0,0.02069246]
[1723981161588,0.350496,59915.0,59914.0,0.02069246]
[1723981161825,0.433596,59915.0,59914.0,0.02069246]
[1723981162037,0.116832,59915.0,59914.0,0.02069246]
[1723981162258,0.116838,59912.0,59911.0,0.00040186]
[1723981162464,0.001,59912.0,59911.0,0.04509442]
[1723981162870,0.116836,59913.0,59911.0,0.04409442]
[1723981162992,0.116836,59913.0,59912.0,0.02069256]
[1723981163194,0.116836,59913.0,59912.0,0.04369256]
[1723981164109,0.117836,59913.0,59912.0,0.04369256]
[1723981164966,0.200936,59913.0,59912.0,0.04369256]
[1723981165237,0.200936,59913.0,59912.0,0.0598864]
[1723981165564,0.201936,59913.0,59912.0,0.0608864]
[1723981165976,0.200936,59913.0,59912.0,0.02069256]
[1723981166183,0.116838,59912.0,59911.0,0.00040186]
[1723981166381,0.116838,59912.0,59911.0,0.02109505]
[1723981166564,0.116838,59912.0,59911.0,0.03718926]
[1723981166768,0.116838,59912.0,59911.0,0.01649607]
[1723981166999,0.116838,59912.0,59911.0,0.00040186]
[1723981167280,0.117838,59912.0,59911.0,0.00440186]
[1723981167599,0.117838,59912.0,59911.0,0.00040186]
[1723981167979,0.118838,59912.0,59911.0,0.00440186]
[1723981168910,0.119838,59912.0,59911.0,0.00540186]
[1723981169269,0.116838,59912.0,59911.0,0.00040186]
[1723981169693,0.118838,59912.0,59911.0,0.00540186]
[1723981171047,0.182538,59912.0,59911.0,0.00540186]
[1723981171283,0.002,59912.0,59911.0,0.00540186]
[1723981171971,0.118838,59912.0,59911.0,0.00540186]
[1723981172946,0.116838,59912.0,59911.0,0.00040186]
[1723981173124,0.117838,59912.0,59911.0,0.00140186]
[1723981173330,0.118838,59912.0,59911.0,0.00540186]
[1723981173530,0.118838,59912.0,59911.0,0.01952675]
[1723981173742,0.118838,59912.0,59911.0,0.00540186]
[1723981175138,0.118838,59912.0,59911.0,0.18444086]
[1723981175139,0.002,59912.0,59911.0,0.18444086]
[1723981175345,0.002,59912.0,59911.0,0.09060186]
[1723981175758,0.001,59912.0,59911.0,0.11029493]
[1723981176164,0.002,59912.0,59911.0,0.11129493]
[1723981176618,0.001,59912.0,59911.0,0.22413393]
[1723981176870,0.116832,59915.0,59911.0,0.22713393]
[1723981177002,0.002,59912.0,59911.0,0.20744086]
[1723981177203,0.002,59912.0,59911.0,0.22813392]
[1723981177623,0.001,59912.0,59911.0,0.22413392]
[1723981178453,0.116832,59915.0,59911.0,0.22313392]
[1723981178655,0.116832,59915.0,59912.0,0.04369306]
[1723981178858,0.117832,59915.0,59912.0,0.023]
[1723981179059,0.118832,59915.0,59912.0,0.023]
[1723981179213,0.117832,59915.0,59912.0,0.023]
[1723981179814,0.116832,59915.0,59912.0,0.023]
[1723981180023,0.116832,59915.0,59912.0,0.027]
[1723981180229,0.116835,59914.0,59912.0,0.027]
[1723981180461,0.116835,59914.0,59912.0,0.04864429]
[1723981181909,0.116835,59914.0,59912.0,0.04764429]
[1723981182085,0.116835,59914.0,59912.0,0.04464429]
[1723981182250,0.117835,59914.0,59912.0,0.04864429]
[1723981183304,0.117835,59914.0,59913.0,0.02069255]
[1723981183499,0.117835,59914.0,59913.0,0.04369255]
[1723981183705,0.117835,59914.0,59913.0,0.06223562]
[1723981184107,0.117835,59914.0,59913.0,0.04369255]
[1723981185126,0.116835,59914.0,59913.0,0.04369255]
[1723981185339,0.117835,59914.0,59913.0,0.04869255]
[1723981187805,0.117835,59914.0,59913.0,0.028]
[1723981188032,0.117835,59914.0,59913.0,0.04869255]
[1723981189093,0.351503,59914.0,59913.0,0.02569255]
[1723981189296,0.431403,59914.0,59913.0,0.02569255]
[1723981191947,0.497703,59914.0,59913.0,0.02569255]
[1723981192157,0.497703,59914.0,59913.0,0.005]
[1723981192382,0.497703,59914.0,59913.0,0.02569336]
[1723981192641,0.497703,59914.0,59913.0,0.005]
[1723981193046,0.497703,59914.0,59913.0,0.004]
[1723981193263,0.116838,59912.0,59908.0,0.116845]
[1723981193472,0.116838,59912.0,59909.0,0.04369342]
[1723981193691,0.116838,59912.0,59910.0,0.02069342]
[1723981193892,0.233672,59913.0,59911.0,0.04409528]
[1723981194096,0.116839,59912.0,59911.0,0.04409528]
[1723981194245,0.116839,59912.0,59911.0,0.0440954]
[1723981195258,0.117839,59912.0,59911.0,0.0480954]
[1723981195633,0.117839,59912.0,59911.0,0.0440954]
[1723981195634,0.116839,59912.0,59911.0,0.0440954]
[1723981195759,0.116839,59912.0,59911.0,0.04809541]
[1723981195967,0.117839,59912.0,59911.0,0.06558965]
[1723981196206,0.117839,59912.0,59911.0,0.049095]
[1723981197016,0.117839,59912.0,59911.0,0.04909496]
[1723981197220,0.001,59912.0,59911.0,0.04909496]
[1723981197571,0.001,59912.0,59911.0,0.08384439]
[1723981197772,0.001,59912.0,59911.0,0.04909496]
[1723981197980,0.001,59912.0,59911.0,0.78199196]
[1723981198181,0.001,59912.0,59911.0,0.84049501]
[1723981198381,0.001,59912.0,59911.0,1.6071882]
[1723981198609,0.001,59912.0,59911.0,1.63222]
[1723981198781,0.001,59912.0,59911.0,1.62822]
[1723981198983,0.001,59912.0,59911.0,1.57268594]
[1723981199372,0.000825,59914.0,59913.0,0.970552]
[1723981199576,0.000825,59914.0,59913.0,1.17287214]
[1723981199780,0.000825,59914.0,59913.0,1.54322507]
[1723981200027,0.000825,59914.0,59913.0,1.46402892]
[1723981200287,0.000825,59914.0,59913.0,1.54321548]
[1723981200532,0.000825,59914.0,59913.0,1.48778067]
[1723981200759,0.000825,59914.0,59913.0,1.54321551]
[1723981201171,0.000825,59914.0,59913.0,1.14784054]
[1723981201377,0.000825,59914.0,59913.0,1.51819404]
[1723981201749,0.000825,59914.0,59913.0,1.51819543]
[1723981202176,0.000825,59914.0,59913.0,1.49444368]
[1723981202377,0.001825,59914.0,59913.0,1.5024442]
[1723981202900,0.002825,59914.0,59913.0,1.5164442]
[1723981203106,0.002825,59914.0,59913.0,1.51644421]
[1723981203315,0.002825,59914.0,59913.0,1.05498824]
[1723981203516,0.001825,59914.0,59913.0,1.05498824]
[1723981203802,0.002825,59914.0,59913.0,1.12106047]
[1723981204182,0.002825,59914.0,59913.0,1.51645212]
[1723981204384,0.002825,59914.0,59913.0,1.51645125]
[1723981204532,0.001825,59914.0,59913.0,1.50845125]
[1723981204936,0.002825,59914.0,59913.0,1.51845125]
[1723981205460,0.001825,59914.0,59913.0,1.13809562]
[1723981205635,0.000825,59914.0,59913.0,1.12409562]
[1723981205837,0.001825,59914.0,59913.0,1.05898824]
[1723981206062,0.002825,59914.0,59913.0,1.06798824]
[1723981206388,0.001825,59914.0,59913.0,1.10805362]
[1723981206946,0.002825,59914.0,59913.0,1.11705362]
[1723981207147,0.002825,59914.0,59913.0,1.11205362]
[1723981207352,0.002825,59914.0,59913.0,0.87938162]
[1723981207785,0.003825,59914.0,59913.0,0.88938162]
[1723981208533,0.003825,59914.0,59913.0,0.83931624]
[1723981209356,0.003825,59914.0,59913.0,0.80457026]
[1723981209578,0.003825,59914.0,59913.0,0.83931797]
[1723981209801,0.003825,59914.0,59913.0,0.84131797]
[1723981210784,0.003825,59914.0,59913.0,0.80657026]
[1723981210987,0.003825,59914.0,59913.0,0.84331788]
[1723981211231,0.003825,59914.0,59913.0,0.84231788]
[1723981211407,0.003825,59914.0,59913.0,0.84131896]
[1723981211610,0.003825,59914.0,59913.0,0.84231896]
[1723981211819,0.003825,59914.0,59913.0,0.84131896]
[1723981212414,0.003825,59914.0,59913.0,0.45694696]
[1723981212623,0.003825,59914.0,59913.0,0.18852726]
[1723981213727,0.001825,59914.0,59913.0,0.17052726]
[1723981213922,0.002825,59914.0,59913.0,0.17952726]
[1723981214731,0.001825,59914.0,59913.0,0.16952726]
[1723981215155,0.002825,59914.0,59913.0,0.17852726]
[1723981215336,0.001825,59914.0,59913.0,0.16952726]
[1723981215573,0.001825,59914.0,59913.0,0.16852726]
[1723981215770,0.001825,59914.0,59913.0,0.16852831]
[1723981215973,0.001825,59914.0,59913.0,0.16952831]
[1723981216203,0.002825,59914.0,59913.0,0.17752831]
[1723981217161,0.002825,59914.0,59913.0,0.41120031]
[1723981217409,0.002825,59914.0,59913.0,0.49080031]
[1723981217782,0.002825,59914.0,59913.0,0.41120031]
[1723981218185,0.001825,59914.0,59913.0,0.40220031]
[1723981218386,0.000825,59914.0,59913.0,0.39420031]
[1723981218562,0.002825,59914.0,59913.0,0.41120031]
[1723981218991,0.001825,59914.0,59913.0,0.40220031]
[1723981219411,0.001825,59914.0,59913.0,0.40320031]
[1723981219812,0.002825,59914.0,59913.0,0.41120031]
[1723981220015,0.000825,59914.0,59913.0,0.39420031]
[1723981220237,0.000825,59914.0,59913.0,0.373508]
[1723981220470,0.000825,59914.0,59913.0,0.39419955]
[1723981221589,0.001825,59914.0,59913.0,0.40219955]
[1723981221883,0.000825,59914.0,59913.0,0.39419955]
[1723981222196,0.001825,59914.0,59913.0,0.40319955]
[1723981222349,0.001825,59914.0,59913.0,1.01964355]
[1723981222554,0.001825,59914.0,59913.0,1.27601245]
[1723981222797,0.002825,59914.0,59913.0,1.67540208]
[1723981222951,0.002825,59914.0,59913.0,1.72818808]
[1723981223134,0.001825,59914.0,59913.0,1.72018808]
[1723981223560,0.002825,59914.0,59913.0,1.74922189]
[1723981223792,0.002825,59914.0,59913.0,1.62405285]
[1723981223997,0.002825,59914.0,59913.0,1.75320972]
[1723981224862,0.002825,59914.0,59913.0,1.57965518]
[1723981225071,0.002825,59914.0,59913.0,1.07472631]
[1723981225281,0.002825,59914.0,59913.0,0.75570894]
[1723981225391,0.002825,59914.0,59913.0,0.60218]
[1723981225599,0.002825,59914.0,59913.0,0.65761613]
[1723981225817,0.002825,59914.0,59913.0,0.73270677]
[1723981226355,0.002825,59914.0,59913.0,0.75645889]
[1723981226562,0.002825,59914.0,59913.0,0.60218]
[1723981226758,0.002825,59914.0,59913.0,0.68061615]
[1723981226976,0.002825,59914.0,59913.0,0.91428815]
[1723981227144,0.002825,59914.0,59913.0,0.77945742]
[1723981229366,0.002825,59914.0,59913.0,0.62518]
[1723981229544,0.002825,59914.0,59913.0,0.70436817]
[1723981229743,0.002825,59914.0,59913.0,0.78396817]
[1723981229959,0.002825,59914.0,59913.0,0.78396824]
[1723981230126,0.002825,59914.0,59913.0,1.01764024]
[1723981230445,0.002825,59914.0,59913.0,0.78396824]
[1723981231307,0.002825,59914.0,59913.0,0.78796824]
[1723981231516,0.002825,59914.0,59913.0,1.46116816]
[1723981231877,0.002825,59914.0,59913.0,1.56128703]
[1723981232517,0.002825,59914.0,59913.0,1.46116816]
[1723981233645,0.002825,59914.0,59913.0,1.43741592]
[1723981233847,0.002825,59914.0,59913.0,1.46116772]
[1723981235080,0.002825,59914.0,59913.0,1.53624929]
[1723981235653,0.002825,59914.0,59913.0,1.53524929]
[1723981235886,0.002825,59914.0,59913.0,1.15917729]
[1723981236159,0.002825,59914.0,59913.0,0.71374976]
[1723981236368,0.002825,59914.0,59913.0,0.78883333]
[1723981236590,0.002825,59914.0,59913.0,0.71374976]
[1723981236792,0.002825,59914.0,59913.0,0.68999796]
[1723981236990,0.002825,59914.0,59913.0,0.68699796]
[1723981237737,0.002825,59914.0,59913.0,0.68699988]
[1723981238219,0.002825,59914.0,59913.0,0.65225284]
[1723981238420,0.002825,59914.0,59913.0,0.68700092]
[1723981238847,0.002825,59914.0,59913.0,0.68800092]
[1723981240449,0.002825,59914.0,59913.0,0.69000097]
[1723981241298,0.002825,59914.0,59913.0,0.73706083]
[1723981242047,0.002825,59914.0,59913.0,0.68700097]
[1723981242420,0.002825,59914.0,59913.0,0.73706083]
[1723981242622,0.002825,59914.0,59913.0,0.74006083]
[1723981242831,0.002825,59914.0,59913.0,0.69000097]
[1723981243368,0.002825,59914.0,59913.0,0.68800097]
[1723981243608,0.002825,59914.0,59913.0,0.73809935]
[1723981244019,0.002825,59914.0,59913.0,0.74009935]
[1723981244236,0.002825,59914.0,59913.0,0.73709935]
[1723981245409,0.002825,59914.0,59913.0,0.73710033]
[1723981248536,0.002825,59914.0,59913.0,0.73710244]
[1723981248739,0.002825,59914.0,59913.0,0.50343044]
[1723981248944,0.077825,59914.0,59913.0,0.21965697]
[1723981249145,0.077825,59914.0,59913.0,0.10282097]
[1723981249357,0.077825,59914.0,59913.0,0.21965697]
[1723981250253,0.077825,59914.0,59913.0,0.2196582]
[1723981250691,0.077825,59914.0,59913.0,0.21965822]
[1723981251545,0.077825,59914.0,59913.0,0.0450737]
[1723981251546,0.255259,59914.0,59913.0,0.0450737]
[1723981251771,0.488927,59914.0,59913.0,0.0450737]
[1723981252383,0.488927,59914.0,59913.0,0.03769174]
[1723981253572,0.488927,59914.0,59913.0,0.04513519]
[1723981254252,0.488927,59914.0,59913.0,0.02444345]
[1723981254470,0.488927,59914.0,59913.0,0.04513632]
[1723981254879,0.488927,59914.0,59913.0,0.03769287]
[1723981255086,0.255259,59914.0,59913.0,0.04514482]
[1723981255299,0.255259,59914.0,59913.0,0.03769287]
[1723981255519,0.255259,59914.0,59913.0,0.04514482]
[1723981255722,0.255259,59914.0,59913.0,0.06138379]
[1723981255954,0.255259,59914.0,59913.0,0.06138377]
[1723981257255,0.138425,59914.0,59913.0,0.0451448]
[1723981257673,0.255259,59914.0,59913.0,0.0451448]
[1723981258952,0.119659,59914.0,59913.0,0.0451448]
[1723981260787,0.002825,59914.0,59913.0,0.0451448]
[1723981261016,0.002825,59914.0,59913.0,0.0681448]
[1723981261415,0.002825,59914.0,59913.0,0.04745195]
[1723981261614,0.002825,59914.0,59913.0,0.06814435]
[1723981262056,0.002825,59914.0,59913.0,0.04745195]
[1723981262202,0.002825,59914.0,59913.0,0.06814452]
[1723981263617,0.002825,59914.0,59913.0,0.41865252]
[1723981263819,0.002825,59914.0,59913.0,0.06814452]
[1723981269882,0.002825,59914.0,59913.0,0.04745195]
[1723981270115,0.002825,59914.0,59913.0,0.0681443]
[1723981274647,0.002825,59914.0,59913.0,0.0681441]